bitfinex/quotes_SOLUSD_20250819
["timestamp","ask_amount","ask_price","bid_price","bid_amount"]
[1755609139927,51.4807793,181.9,181.89,0.03]
[1755609140329,90.4607793,181.9,181.89,0.03]
[1755609143544,89.08455575,181.9,181.89,0.03]
[1755609143756,90.46077954,181.9,181.89,0.03]
[1755609144656,90.4608279,181.9,181.89,0.03]
[1755609145632,82.82103638,181.9,181.89,0.03]
[1755609145839,26.0,181.9,181.89,6.20782835]
[1755609146062,38.96,181.9,181.89,0.71]
[1755609146359,40.33607773,181.9,181.89,0.03]
[1755609146539,40.33611836,181.9,181.89,0.03]
[1755609146934,40.33611836,181.9,181.89,0.71]
[1755609147160,38.96,181.9,181.89,6.20782835]
[1755609150445,38.96,181.9,181.89,0.03]
[1755609150655,47.25587798,181.9,181.89,0.03]
[1755609150961,61.57147199,181.9,181.89,0.03]
[1755609152661,60.85147199,181.9,181.89,0.03]
[1755609152845,60.85156096,181.9,181.89,0.03]
[1755609153964,61.57156096,181.9,181.89,0.03]
[1755609154368,60.85156096,181.9,181.89,0.03]
[1755609154863,47.25596695,181.9,181.89,0.03]
[1755609155449,27.37617543,181.9,181.89,0.71]
[1755609155651,40.29617543,181.9,181.89,0.71]
[1755609155849,40.29607773,181.9,181.89,0.71]
[1755609156348,38.92,181.9,181.89,0.71]
[1755609156957,38.92,181.9,181.89,6.20782835]
[1755609157360,0.06,181.91,181.89,13.12761987]
[1755609157561,0.06,181.91,181.9,7.59979152]
[1755609159075,0.06,181.91,181.9,13.09731763]
[1755609161174,0.06,181.91,181.9,6.17752611]
[1755609161359,0.06,181.91,181.9,5.49752611]
[1755609162154,0.75,181.91,181.9,5.49752611]
[1755609162357,0.06,181.91,181.9,5.49752611]
[1755609163157,0.06,181.91,181.89,0.03]
[1755609164562,0.75,181.91,181.89,0.03]
[1755609168090,0.69,181.9,181.89,0.03]
[1755609168455,0.06,181.91,181.89,0.03]
[1755609169757,0.06,181.91,181.89,5.52782835]
[1755609169962,0.06,181.91,181.9,7.61979152]
[1755609171771,0.06,181.91,181.9,13.11731763]
[1755609175070,0.06,181.93,181.9,13.11731763]
[1755609175261,0.06,181.93,181.92,6.91979152]
[1755609175681,0.06,181.93,181.92,7.61979152]
[1755609177183,0.06,181.93,181.92,12.41671324]
[1755609177372,0.06,181.93,181.92,13.11671324]
[1755609177574,0.06,181.93,181.92,12.41671324]
[1755609179897,0.06,181.95,181.92,13.11671324]
[1755609180067,0.06,181.95,181.94,6.91979152]
[1755609180274,0.75,181.95,181.92,5.49692172]
[1755609180467,0.75,181.95,181.92,12.41671324]
[1755609180770,0.69,181.94,181.92,5.49692172]
[1755609180965,38.9,181.95,181.92,5.49692172]
[1755609181198,0.69,181.93,181.92,5.49692172]
[1755609181709,0.69,181.93,181.91,19.2395835]
[1755609182002,38.9,181.95,181.91,19.9395835]
[1755609182177,39.59,181.95,181.91,19.9395835]
[1755609182692,39.59,181.95,181.91,26.85937502]
[1755609183209,39.59,181.95,181.91,26.15937502]
[1755609183703,0.69,181.94,181.91,26.15937502]
[1755609184912,38.9,181.95,181.93,12.41641109]
[1755609185307,38.9,181.95,181.93,6.19661957]
[1755609185516,38.9,181.95,181.93,13.11641109]
[1755609186597,38.9,181.95,181.93,12.41641109]
[1755609187709,39.59,181.95,181.92,5.49692172]
[1755609187881,39.59,181.95,181.92,12.41671324]
[1755609188687,0.66,181.94,181.92,12.41671324]
[1755609189019,38.9,181.95,181.92,12.41671324]
[1755609189382,39.56,181.95,181.92,12.41671324]
[1755609192017,0.72,181.95,181.92,13.12671324]
[1755609192225,0.72,181.95,181.92,12.41671324]
[1755609192733,0.72,181.95,181.92,13.12671324]
[1755609194009,0.06,181.95,181.92,13.12671324]
[1755609194183,0.06,181.95,181.94,6.91979152]
[1755609195013,0.06,181.95,181.94,7.62979152]
[1755609196421,0.06,181.95,181.94,13.12610898]
[1755609196724,0.06,181.95,181.94,12.41610898]
[1755609199025,0.72,181.95,181.94,5.49631746]
[1755609200224,0.06,181.95,181.93,6.91979152]
[1755609200721,0.06,181.95,181.92,13.12671324]
[1755609200917,0.66,181.94,181.92,12.41671324]
[1755609202004,0.66,181.94,181.92,5.49692172]
[1755609202422,0.06,181.95,181.92,5.49692172]
[1755609202826,0.72,181.95,181.92,5.49692172]
[1755609203811,0.66,181.94,181.91,19.2695835]
[1755609204043,0.66,181.94,181.91,26.89937502]
[1755609204419,0.06,181.95,181.91,26.89937502]
[1755609204702,0.72,181.95,181.91,26.89937502]
[1755609205102,0.72,181.95,181.91,26.18937502]
[1755609205645,0.66,181.94,181.91,19.2695835]
[1755609205829,0.66,181.93,181.91,5.5272239]
[1755609206627,0.06,181.95,181.91,5.5272239]
[1755609206819,0.66,181.94,181.91,5.5272239]
[1755609207453,0.06,181.95,181.91,5.5272239]
[1755609207745,0.66,181.93,181.91,5.5272239]
[1755609209939,7.57979152,181.92,181.91,0.03]
[1755609222142,6.91979152,181.92,181.91,0.03]
[1755609222948,7.58979152,181.92,181.91,0.03]
[1755609230252,6.91979152,181.92,181.91,0.03]
[1755609232136,38.72,181.93,181.91,0.03]
[1755609232444,0.67,181.92,181.91,0.03]
[1755609234966,38.72,181.92,181.91,4.46576032]
[1755609235259,38.72,181.92,181.91,0.03]
[1755609235260,39.39,181.92,181.91,0.03]
[1755609238078,54.361615,181.92,181.91,0.03]
[1755609238938,40.09602099,181.92,181.91,0.03]
[1755609239173,38.72,181.92,181.91,0.03]
[1755609240161,40.09601119,181.92,181.91,0.03]
[1755609240369,40.76609243,181.92,181.91,0.03]
[1755609242363,39.39,181.92,181.91,0.03]
[1755609242571,40.76605954,181.92,181.91,0.03]
[1755609242978,54.36165355,181.92,181.91,0.03]
[1755609243149,58.04564258,181.92,181.91,0.03]
[1755609243354,62.4814029,181.92,181.91,0.03]
[1755609243861,58.04564258,181.92,181.91,0.03]
[1755609245249,54.36173479,181.92,181.91,0.03]
[1755609245461,58.04635798,181.92,181.91,0.03]
[1755609245946,54.36173479,181.92,181.91,0.03]
[1755609246146,53.69173479,181.92,181.91,0.03]
[1755609246349,40.09614078,181.92,181.91,0.03]
[1755609247575,1.37614078,181.92,181.91,10.63298422]
[1755609248070,1.37614078,181.92,181.91,9.96298422]
[1755609248277,1.37614078,181.92,181.91,10.63298422]
[1755609248461,38.76,181.93,181.91,13.12700871]
[1755609248669,38.76,181.93,181.92,6.92978481]
[1755609249250,40.13598038,181.93,181.92,12.42670653]
[1755609249969,38.76,181.93,181.92,5.49692172]
[1755609250173,38.76,181.93,181.92,12.42670653]
[1755609250578,40.13585954,181.93,181.92,12.42670653]
[1755609252499,38.76,181.93,181.92,12.42670653]
[1755609256708,38.76,181.93,181.92,5.49692172]
[1755609257588,39.44,181.93,181.92,5.49692172]
[1755609257787,39.44,181.93,181.91,0.03]
[1755609258112,0.68,181.92,181.91,0.03]
[1755609261306,4.36710454,181.92,181.91,0.03]
[1755609261635,0.68,181.92,181.91,0.03]
[1755609262802,4.36468795,181.92,181.91,0.03]
[1755609264907,0.68,181.92,181.91,0.03]
[1755609265081,4.36539876,181.92,181.91,0.03]
[1755609270301,4.3660383,181.92,181.91,0.03]
[1755609275406,22.39822132,181.92,181.91,0.03]
[1755609276511,17.96163231,181.92,181.91,0.03]
[1755609278545,22.39822132,181.92,181.91,0.03]
[1755609280238,17.96163231,181.92,181.91,0.03]
[1755609280827,17.28163231,181.92,181.91,0.03]
[1755609281007,42.3860383,181.92,181.91,0.03]
[1755609282238,43.1060383,181.92,181.91,0.03]
[1755609286506,42.3860383,181.92,181.91,0.03]
[1755609286738,42.3860383,181.92,181.91,0.74]
[1755609287534,42.3860383,181.92,181.91,0.03]
[1755609287836,38.7,181.92,181.91,0.03]
[1755609291233,39.42,181.92,181.91,0.03]
[1755609294825,38.7,181.92,181.91,0.03]
[1755609295034,38.7,181.92,181.91,5.5272239]
[1755609296651,39.42,181.92,181.91,5.5272239]
[1755609297954,38.7,181.92,181.91,5.5272239]
[1755609299236,39.42,181.92,181.91,0.03]
[1755609302256,38.7,181.92,181.91,0.03]
[1755609303956,38.7,181.92,181.91,6.2372239]
[1755609304178,0.06,181.93,181.91,10.67381291]
[1755609304454,0.06,181.95,181.92,22.89294505]
[1755609304658,0.06,181.95,181.94,4.43658901]
[1755609305154,0.78,181.95,181.92,4.43658901]
[1755609305336,39.44,181.95,181.91,23.70687266]
[1755609305527,39.44,181.95,181.92,4.43658901]
[1755609305845,39.44,181.95,181.91,19.98028365]
[1755609306046,0.72,181.94,181.92,9.93326195]
[1755609307457,0.72,181.94,181.92,5.49667294]
[1755609307647,0.72,181.94,181.91,0.03]
[1755609307648,39.38,181.93,181.91,0.03]
[1755609308135,0.66,181.92,181.91,0.03]
[1755609308860,38.66,181.93,181.91,0.03]
[1755609309033,38.66,181.93,181.92,4.43658901]
[1755609309627,38.66,181.93,181.91,4.46658901]
[1755609309830,38.66,181.93,181.91,0.03]
[1755609310033,0.66,181.92,181.91,0.03]
[1755609311674,5.09658901,181.92,181.91,0.03]
[1755609312377,0.66,181.92,181.91,0.03]
[1755609314281,38.66,181.93,181.91,0.03]
[1755609314865,39.32,181.93,181.91,0.03]
[1755609315466,38.66,181.93,181.91,0.03]
[1755609316283,38.66,181.93,181.91,7.66339411]
[1755609316797,38.66,181.93,181.91,6.96339411]
[1755609317188,38.66,181.93,181.92,5.49692172]
[1755609318483,39.32,181.93,181.91,12.46051019]
[1755609318688,39.32,181.93,181.91,5.52711608]
[1755609320754,38.66,181.93,181.91,5.52711608]
[1755609321074,39.32,181.93,181.91,5.52711608]
[1755609322383,38.66,181.93,181.91,5.52711608]
[1755609322690,0.66,181.92,181.91,5.52711608]
[1755609322983,0.66,181.92,181.91,0.03]
[1755609323190,0.66,181.92,181.91,26.03]
[1755609327490,0.66,181.92,181.91,0.03]
[1755609327793,0.66,181.92,181.91,26.03]
[1755609327991,0.66,181.92,181.91,0.03]
[1755609331904,24.87833542,181.92,181.91,0.03]
[1755609332418,27.88094251,181.92,181.91,0.03]
[1755609334308,30.37841315,181.92,181.91,0.03]
[1755609336172,19.09289763,181.91,181.89,0.03]
[1755609336480,49.26589742,181.9,181.89,0.03]
[1755609336686,49.92589742,181.9,181.89,0.03]
[1755609338479,3.6893473,181.9,181.89,0.03]
[1755609338679,52.23559401,181.9,181.89,0.03]
[1755609338895,63.52149143,181.9,181.89,0.03]
[1755609342915,62.86149143,181.9,181.89,0.03]
[1755609343610,63.52149143,181.9,181.89,0.03]
[1755609345307,62.86149143,181.9,181.89,0.03]
[1755609345884,89.52149143,181.9,181.89,0.03]
[1755609348511,82.58494131,181.9,181.89,0.03]
[1755609348698,89.52149143,181.9,181.89,0.03]
[1755609348886,95.01901754,181.9,181.89,0.03]
[1755609349421,69.01901754,181.9,181.89,0.03]
[1755609350116,71.22317854,181.9,181.89,0.03]
[1755609350319,17.94494131,181.9,181.89,0.03]
[1755609350506,52.23559401,181.9,181.89,0.03]
[1755609350705,55.92494131,181.9,181.89,0.03]
[1755609351794,55.92494131,181.9,181.89,0.74]
[1755609352203,55.92494131,181.9,181.89,0.03]
[1755609353506,52.23559401,181.9,181.89,0.03]
[1755609354320,0.72,181.93,181.89,7.67655012]
[1755609354321,0.06,181.93,181.89,7.67655012]
[1755609354638,0.06,181.93,181.92,6.93655012]
[1755609354795,38.7,181.93,181.92,6.93655012]
[1755609354994,38.7,181.93,181.92,7.64655012]
[1755609356304,38.7,181.93,181.92,13.14347184]
[1755609356911,38.7,181.93,181.92,6.20692172]
[1755609357118,38.7,181.93,181.92,13.14347184]
[1755609360527,38.7,181.93,181.9,0.71]
[1755609360717,38.7,181.93,181.9,13.14382642]
[1755609361022,38.7,181.93,181.91,6.93655012]
[1755609361202,13.59559401,181.92,181.89,12.46435313]
[1755609361402,38.62,181.91,181.89,5.52780301]
[1755609362007,38.62,181.91,181.89,12.46435313]
[1755609362219,38.62,181.91,181.9,7.64655012]
[1755609362728,38.62,181.91,181.9,13.14407623]
[1755609363724,0.06,181.93,181.9,13.14407623]
[1755609364028,38.68,181.93,181.92,6.93655012]
[1755609364521,38.68,181.93,181.92,7.64655012]
[1755609364721,0.06,181.93,181.92,13.14347184]
[1755609370408,0.06,181.95,181.94,6.93655012]
[1755609370733,1e-08,181.95,181.94,6.93655012]
[1755609371031,1e-08,181.95,181.94,9.80852612]
[1755609372031,1e-08,181.95,181.94,94.50484358]
[1755609373210,1e-08,181.95,181.94,91.63286758]
[1755609373639,1e-08,181.95,181.94,92.30286758]
[1755609375443,1e-08,181.95,181.94,13.10286758]
[1755609378245,1e-08,181.95,181.94,12.43286758]
[1755609379945,1e-08,181.95,181.94,13.10286758]
[1755609380445,1e-08,181.95,181.94,15.30508658]
[1755609382343,1e-08,181.97,181.94,120.50508658]
[1755609382519,1e-08,181.97,181.96,6.93655012]
[1755609383040,1e-08,181.99,181.96,86.80655012]
[1755609383217,1e-08,181.99,181.98,32.93655012]
[1755609383423,1e-08,181.99,181.98,150.73655012]
[1755609383745,1e-08,181.99,181.98,72.20655012]
[1755609384127,1e-08,181.99,181.98,79.90315047]
[1755609386748,0.06,182.03,181.98,93.64092385]
[1755609386949,0.06,182.03,182.02,6.93655012]
[1755609387732,0.06,182.03,182.02,12.43045188]
[1755609391139,0.06,182.03,182.02,13.10045188]
[1755609391462,0.06,182.03,182.02,15.30170188]
[1755609391662,0.06,182.05,182.02,53.88170188]
[1755609391845,0.06,182.05,182.04,6.93655012]
[1755609392044,1e-08,182.05,182.04,124.71655012]
[1755609392248,1e-08,182.05,182.04,132.32310024]
[1755609393864,1e-08,182.05,182.04,140.01704241]
[1755609395063,1e-08,182.05,182.04,133.08049229]
[1755609395246,1e-08,182.05,182.04,132.41049229]
[1755609395649,1e-08,182.05,182.04,133.08049229]
[1755609396238,1e-08,182.05,182.04,132.41049229]
[1755609402178,1e-08,182.05,182.04,53.21049229]
[1755609407974,1e-08,182.05,182.04,132.41049229]
[1755609408474,0.65000001,182.05,182.04,86.89394217]
[1755609408671,0.65000001,182.05,182.04,84.69329817]
[1755609408976,0.65000001,182.05,182.04,5.49329817]
[1755609409979,0.65000001,182.05,182.01,20.67135697]
[1755609410362,0.65000001,182.05,182.0,64.59]
[1755609410664,0.65000001,182.05,182.01,5.49420361]
[1755609410665,7.58655013,182.05,182.01,5.49420361]
[1755609410870,0.65,182.04,182.01,5.49420361]
[1755609412062,0.65,182.04,182.0,5.52450549]
[1755609413782,6.93655012,182.03,182.0,5.52450549]
[1755609413984,7.58655012,182.02,182.0,0.03]
[1755609414167,0.65,182.01,182.0,0.03]
[1755609416055,0.65,182.03,182.0,6.96655012]
[1755609417263,0.65,182.02,182.0,6.96655012]
[1755609417882,0.65,182.02,182.01,5.49420361]
[1755609418094,0.65,182.04,182.01,12.43075373]
[1755609418262,1e-08,182.05,182.02,6.93655012]
[1755609418464,1e-08,182.05,182.04,6.93655012]
[1755609418996,1e-08,182.05,182.01,105.36626276]
[1755609419352,0.65,182.04,182.02,6.93655012]
[1755609419670,1e-08,182.05,182.03,6.93655012]
[1755609419860,1e-08,182.05,182.04,12.42984829]
[1755609420368,0.65000001,182.05,182.04,5.49329817]
[1755609421155,0.65000001,182.05,182.02,5.49390176]
[1755609421667,0.65,182.04,182.02,5.49390176]
[1755609423399,1e-08,182.05,182.02,12.43045188]
[1755609423577,1e-08,182.05,182.03,6.93655012]
[1755609423778,1e-08,182.05,182.02,5.49390176]
[1755609424001,1e-08,182.05,182.03,6.93655012]
[1755609424208,1e-08,182.05,182.04,12.42984829]
[1755609424504,1e-08,182.05,182.04,5.49329817]
[1755609424804,1e-08,182.05,182.04,12.42984829]
[1755609425805,1e-08,182.05,182.03,5.49359995]
[1755609426002,1e-08,182.05,182.04,26.0]
[1755609426205,0.65000001,182.05,182.04,26.0]
[1755609427004,0.65000001,182.05,182.04,31.49329817]
[1755609430008,1e-08,182.05,182.04,31.49329817]
[1755609430412,1e-08,182.05,182.04,38.42984829]
[1755609433106,1e-08,182.05,182.04,31.49329817]
[1755609433418,1e-08,182.05,182.04,38.42984829]
[1755609433608,1e-08,182.05,182.04,12.42984829]
[1755609434419,0.70000001,182.05,182.04,5.49329817]
[1755609434796,1e-08,182.05,182.04,5.49329817]
[1755609435692,1e-08,182.05,182.04,12.42984829]
[1755609436390,1e-08,182.05,182.04,13.14984829]
[1755609437418,1e-08,182.05,182.04,12.42984829]
[1755609437619,1e-08,182.05,182.04,6.93655012]
[1755609438210,1e-08,182.05,182.04,7.65655012]
[1755609438392,1e-08,182.05,182.04,33.65655012]
[1755609439290,1e-08,182.05,182.04,151.41655012]
[1755609439494,0.06,182.09,182.08,12.4286415]
[1755609439697,0.2,182.1,182.08,50.9886415]
[1755609439894,1e-08,182.1,182.09,26.0]
[1755609440314,1e-08,182.1,182.09,32.93655012]
[1755609441202,1e-08,182.1,182.09,26.0]
[1755609441511,1e-08,182.1,182.09,32.93655012]
[1755609441714,1e-08,182.1,182.09,12.42833989]
[1755609445523,0.70000001,182.1,182.09,12.42833989]
[1755609446110,1e-08,182.1,182.09,12.42833989]
[1755609455042,1e-08,182.1,182.09,39.14833989]
[1755609455207,1e-08,182.1,182.09,118.34833989]
[1755609458130,1e-08,182.1,182.09,117.62833989]
[1755609459507,0.68000001,182.1,182.09,117.62833989]
[1755609459734,0.68000001,182.1,182.09,110.69178977]
[1755609460037,0.68000001,182.1,182.09,117.62833989]
[1755609460335,0.68000001,182.1,182.09,110.69178977]
[1755609460724,0.68000001,182.1,182.09,117.62833989]
[1755609461125,0.68000001,182.1,182.09,38.42833989]
[1755609461932,1e-08,182.1,182.09,38.42833989]
[1755609462443,0.68000001,182.1,182.09,38.42833989]
[1755609462635,0.68000001,182.1,182.09,38.45833989]
[1755609463439,1e-08,182.1,182.09,38.45833989]
[1755609464934,1e-08,182.1,182.09,39.14833989]
[1755609466840,0.06,182.11,182.09,39.14833989]
[1755609466841,1e-08,182.11,182.09,13.14833989]
[1755609467040,16.51962438,182.19,182.09,13.14833989]
[1755609467041,0.06,182.19,182.13,26.0]
[1755609467230,0.74,182.19,182.15,6.93655012]
[1755609467554,0.74,182.18,182.15,6.93655012]
[1755609468744,0.74,182.16,182.15,6.93655012]
[1755609469137,0.06,182.16,182.15,6.93655012]
[1755609469338,0.06,182.16,182.15,12.4265309]
[1755609472559,0.06,182.16,182.15,13.1165309]
[1755609472953,0.06,182.16,182.15,92.3165309]
[1755609473555,0.06,182.16,182.15,91.6265309]
[1755609474236,0.06,182.16,182.15,92.3165309]
[1755609474950,0.06,182.16,182.15,91.6265309]
[1755609475266,0.06,182.16,182.15,85.37998078]
[1755609475451,0.06,182.16,182.15,91.6265309]
[1755609476166,0.74,182.16,182.15,130.1465309]
[1755609476954,0.74,182.16,182.15,91.6265309]
[1755609477161,0.06,182.16,182.15,91.6265309]
[1755609480359,0.74,182.16,182.15,5.48998078]
[1755609480550,7.67655012,182.16,182.11,5.49118664]
[1755609480749,7.61655012,182.15,182.11,5.49118664]
[1755609480958,0.68,182.14,182.1,5.52148819]
[1755609481150,0.68,182.14,182.1,19.25020867]
[1755609482851,0.68,182.14,182.11,6.93655012]
[1755609483055,0.06,182.16,182.13,6.93655012]
[1755609483258,0.06,182.16,182.15,6.93655012]
[1755609484160,0.06,182.16,182.15,5.48998078]
[1755609484470,0.06,182.16,182.15,12.4265309]
[1755609484969,0.06,182.18,182.15,13.1165309]
[1755609485170,0.06,182.18,182.17,6.93655012]
[1755609485553,0.06,182.18,182.17,7.62655012]
[1755609486365,0.06,182.19,182.17,13.11592817]
[1755609486562,0.06,182.19,182.18,6.93655012]
[1755609486957,1e-08,182.19,182.18,7.62655012]
[1755609487161,1e-08,182.21,182.2,26.0]
[1755609487369,1e-08,182.21,182.2,71.43655012]
[1755609487664,1e-08,182.21,182.2,32.93655012]
[1755609488252,1e-08,182.21,182.2,71.43655012]
[1755609488452,1e-08,182.21,182.2,77.57502432]
[1755609489057,1e-08,182.22,182.2,77.57502432]
[1755609489285,1e-08,182.22,182.21,7.58655012]
[1755609490153,1e-08,182.22,182.21,12.4247231]
[1755609490353,1e-08,182.22,182.21,13.0747231]
[1755609494781,1e-08,182.22,182.21,12.4247231]
[1755609496585,1e-08,182.22,182.21,91.6247231]
[1755609496787,0.67000001,182.22,182.21,117.6247231]
[1755609496975,0.67000001,182.22,182.21,156.1047231]
[1755609497385,0.67000001,182.22,182.21,117.6247231]
[1755609497775,0.67000001,182.22,182.21,110.68817298]
[1755609497974,0.67000001,182.22,182.21,117.6247231]
[1755609498789,1e-08,182.22,182.21,156.1047231]
[1755609498956,0.67,182.27,182.21,171.91602049]
[1755609499157,0.67,182.27,182.26,6.93655012]
[1755609499386,0.67,182.27,182.22,26.0]
[1755609499387,0.67,182.27,182.24,38.48]
[1755609499593,0.67,182.27,182.25,6.93655012]
[1755609500264,0.67,182.26,182.25,6.93655012]
[1755609501183,17.27416414,182.33,182.25,6.93655012]
[1755609501184,0.67,182.28,182.25,6.93655012]
[1755609501395,20.53214413,182.33,182.27,6.93655012]
[1755609501865,0.67,182.32,182.27,6.93655012]
[1755609502386,7.60655012,182.32,182.26,6.93655012]
[1755609502585,6.93655012,182.29,182.24,19.20544336]
[1755609502888,0.67,182.28,182.24,19.20544336]
[1755609503112,0.67,182.28,182.24,26.14199348]
[1755609503268,7.60655012,182.28,182.24,5.48726953]
[1755609503468,0.67,182.27,182.24,5.48726953]
[1755609504169,7.60655012,182.27,182.24,5.48726953]
[1755609504481,0.67,182.26,182.24,5.48726953]
[1755609504984,0.67,182.26,182.22,5.4878718]
[1755609505973,0.67,182.26,182.22,6.93655012]
[1755609506587,20.53214413,182.3,182.24,6.93655012]
[1755609506770,0.67,182.28,182.24,6.93655012]
[1755609506965,14.26559401,182.28,182.23,6.93655012]
[1755609507179,0.67,182.27,182.23,6.93655012]
[1755609507374,0.67,182.26,182.23,6.93655012]
[1755609507588,13.59559401,182.28,182.23,6.93655012]
[1755609507884,0.67,182.27,182.23,6.93655012]
[1755609508085,0.67,182.27,182.24,12.42381965]
[1755609508293,41.34147886,182.34,182.26,6.93655012]
[1755609508294,3.67934903,182.32,182.26,6.93655012]
[1755609508496,0.67,182.32,182.3,6.93655012]
[1755609508681,0.67,182.32,182.29,6.93655012]
[1755609508984,0.67,182.31,182.28,6.93655012]
[1755609509497,0.67,182.31,182.3,5.48546352]
[1755609510470,13.59559401,182.3,182.25,79.2]
[1755609510670,7.60655012,182.29,182.24,13.71786037]
[1755609510901,0.67,182.28,182.24,13.71786037]
[1755609511504,0.67,182.27,182.25,5.48696844]
[1755609511802,0.67,182.3,182.26,6.93655012]
[1755609512101,0.67,182.29,182.25,26.14093968]
[1755609512284,0.67,182.28,182.25,26.14093968]
[1755609512683,0.67,182.31,182.27,6.93655012]
[1755609513573,0.67,182.31,182.28,5.48606539]
[1755609514080,0.67,182.3,182.28,5.48606539]
[1755609514267,13.59559401,182.33,182.28,5.48606539]
[1755609514268,0.67,182.29,182.28,5.48606539]
[1755609515878,7.60655012,182.29,182.26,5.48666739]
[1755609516082,0.06,182.31,182.26,5.48666739]
[1755609516083,7.60655012,182.28,182.26,5.48666739]
[1755609516270,6.93655012,182.28,182.26,5.48666739]
[1755609516470,0.67,182.27,182.25,5.48688899]
[1755609516695,7.60655012,182.26,182.22,5.4878718]
[1755609516996,7.60655012,182.25,182.22,5.4878718]
[1755609517181,0.67,182.24,182.22,5.4878718]
[1755609517377,0.67,182.23,182.22,5.4878718]
[1755609517791,0.67,182.25,182.21,5.51817298]
[1755609518097,0.72,182.24,182.21,5.51817298]
[1755609520299,7.65655012,182.26,182.21,12.4547231]
[1755609520476,0.72,182.25,182.21,12.4547231]
[1755609520873,0.72,182.25,182.21,5.51817298]
[1755609521074,0.72,182.24,182.21,5.51817298]
[1755609522392,0.72,182.23,182.21,5.51817298]
[1755609522591,6.93655012,182.24,182.21,5.51817298]
[1755609522788,0.72,182.22,182.21,5.51817298]
[1755609523176,7.65655012,182.24,182.21,5.51817298]
[1755609523504,0.72,182.23,182.21,5.51817298]
[1755609524181,0.72,182.23,182.21,0.03]
[1755609526699,0.72,182.22,182.21,0.03]
[1755609527697,0.72,182.24,182.21,0.03]
[1755609528896,0.72,182.23,182.21,0.03]
[1755609529612,0.72,182.25,182.21,0.03]
[1755609529904,0.72,182.24,182.21,0.03]
[1755609530808,0.06,182.26,182.22,0.68]
[1755609531109,0.06,182.24,182.23,13.10412077]
[1755609531485,0.06,182.24,182.23,12.42412077]
[1755609532106,0.06,182.24,182.23,5.48757065]
[1755609532996,0.78,182.24,182.22,5.4878213]
[1755609534085,0.78,182.24,182.21,5.51817298]
[1755609534282,0.06,182.24,182.21,13.1347231]
[1755609534483,0.06,182.24,182.22,7.61655012]
[1755609534713,0.06,182.24,182.23,6.93655012]
[1755609534908,0.06,182.24,182.22,6.93655012]
[1755609535816,0.06,182.24,182.21,84.71817298]
[1755609536118,0.06,182.24,182.21,91.6547231]
[1755609536407,0.78,182.24,182.21,91.6547231]
[1755609538301,0.06,182.24,182.21,91.6547231]
[1755609539091,0.06,182.24,182.22,6.93655012]
[1755609541020,0.06,182.24,182.23,5.48757065]
[1755609542798,0.06,182.24,182.23,13.10412077]
[1755609543816,0.06,182.24,182.23,5.48757065]
[1755609543993,0.78,182.24,182.23,5.48757065]
[1755609544195,0.06,182.24,182.23,12.42412077]
[1755609544405,0.06,182.24,182.23,13.10412077]
[1755609544693,0.06,182.24,182.23,12.42412077]
[1755609545521,0.06,182.24,182.23,13.10412077]
[1755609546021,0.06,182.24,182.23,12.42412077]
[1755609546417,0.06,182.24,182.23,13.10412077]
[1755609546599,0.06,182.24,182.23,6.16757065]
[1755609546799,0.06,182.24,182.23,13.10412077]
[1755609547026,0.06,182.26,182.23,92.30412077]
[1755609547211,0.06,182.26,182.25,32.93655012]
[1755609547405,1e-08,182.26,182.25,71.41655012]
[1755609547705,1e-08,182.26,182.25,151.29655012]
[1755609548322,0.06,182.3,182.25,72.09655012]
[1755609548525,0.06,182.3,182.29,6.93655012]